fUSD/lending_fUSD_20250306
["ID","MTS","AMOUNT","RATE_DAILY","PERIOD"]
[355545027,1741254638780,-622.87,0.00012068,2]
[355545028,1741254638791,-628.92,0.00012068,2]
[355545029,1741254638801,-1358.66,0.00012068,2]
[355545030,1741254638812,-1760.67,0.00012068,2]
[355545031,1741254638825,-1170.43,0.00012068,2]
[355545032,1741254638835,-500.0,0.00012068,2]
[355545033,1741254638846,-500.0,0.00012068,2]
[355545034,1741254638859,-500.0,0.00012068,2]
[355545035,1741254638870,-500.0,0.00012068,2]
[355545036,1741254638881,-1040.46,0.00012068,2]
[355545037,1741254638891,-2435.99278001,0.00012068,2]
[355545038,1741254638908,-2126.25721999,0.00012068,2]
[355545039,1741254638918,-684.61,0.00012068,2]
[355545040,1741254638929,-1256.03,0.00012068,2]
[355545041,1741254638939,-500.0,0.00012068,2]
[355545042,1741254638949,-500.0,0.00012068,2]
[355545043,1741254638960,-500.0,0.00012068,2]
[355545044,1741254638970,-780.59,0.00012068,2]
[355545045,1741254638980,-1459.17,0.00012068,2]
[355545046,1741254638991,-500.0,0.00012068,2]
[355545047,1741254639005,-579.58,0.00012068,2]
[355545048,1741254639016,-546.85,0.00012068,2]
[355545049,1741254639027,-500.0,0.00012068,2]
[355545050,1741254639039,-25066.91278001,0.00012069,2]
[355545051,1741254639052,-103000.0,0.00012069,2]
[355545053,1741254640870,-500.0,0.00011794,2]
[355545054,1741254640880,-595.07,0.00011794,2]
[355545055,1741254640889,-502.02682956,0.00011794,2]
[355545056,1741254640899,-144.97022359,0.00011794,2]
[355545057,1741254640914,-355.02977641,0.00011794,2]
[355545058,1741254640924,-500.0,0.00012067,2]
[355545059,1741254640933,-221.50801636,0.00012067,2]
[355545060,1741254640942,-500.0,0.00012067,2]
[355545061,1741254640951,-500.0,0.00012067,2]
[355545062,1741254640961,-255.51676145,0.00012067,2]
[355545063,1741254640970,-500.0,0.00012067,2]
[355545064,1741254640980,-500.0,0.00012067,2]
[355545065,1741254640989,-500.0,0.00012067,2]
[355545066,1741254641001,-500.0,0.00012067,2]
[355545067,1741254641011,-500.0,0.00012067,2]
[355545068,1741254641020,-356.31998578,0.00012067,2]
[355545069,1741254641812,-143.68001422,0.00012067,2]
[355545070,1741254641821,-500.0,0.00012067,2]
[355545071,1741254641831,-358.53768581,0.00012067,2]
[355545072,1741254641842,-141.46231419,0.00012067,2]
[355545073,1741254641851,-500.0,0.00012067,2]
[355545074,1741254641861,-500.0,0.00012067,2]
[355545075,1741254641870,-500.0,0.00012067,2]
[355545076,1741254641879,-500.0,0.00012068,2]
[355545077,1741254641888,-285.12,0.00012068,2]
[355545078,1741254641898,-2926.52937109,0.00012069,2]
[355545079,1741254642055,-338.06224798,0.00011794,2]
[355545080,1741254642067,-550.85775202,0.00011794,2]
[355545081,1741254642078,-500.0,0.00011794,2]
[355545082,1741254642087,-888.92,0.00012068,2]
[355545083,1741254642096,-41201.78256351,0.00012069,2]
[355545084,1741254642147,-204.01999998,0.00011794,2]
[355545085,1741254642158,-295.98000002,0.00011794,2]
[355545086,1741254642167,-470.94043341,0.00012069,2]
[355545153,1741254643603,-500.0,0.00011793,2]
[355545154,1741254643613,-500.0,0.00011794,2]
[355545155,1741254643623,-603.81986784,0.00011794,2]
[355545156,1741254643633,-500.0,0.00011794,2]
[355545157,1741254643643,-400.71,0.00012067,2]
[355545158,1741254643652,-500.0,0.00012068,2]
[355545159,1741254643662,-328.64,0.00012068,2]
[355545160,1741254643671,-8636.68731149,0.00012069,2]
[355545161,1741254643681,-234.62280746,0.00012069,3]
[355545162,1741254643691,-500.0,0.00012069,2]
[355545163,1741254643701,-316.52,0.00012069,2]
[355545164,1741254643710,-411.22,0.00012069,2]
[355545165,1741254643719,-500.0,0.00012069,2]
[355545166,1741254643729,-500.0,0.00012069,2]
[355545167,1741254643739,-350.0,0.00012069,2]
[355545168,1741254643748,-500.0,0.00012069,2]
[355545169,1741254643758,-500.0,0.00012069,2]
[355545170,1741254643767,-500.0,0.00012069,2]
[355545171,1741254643777,-500.0,0.00012069,2]
[355545172,1741254643787,-633.53,0.00012069,2]
[355545173,1741254643797,-500.0,0.00012069,2]
[355545174,1741254643808,-500.0,0.00012069,2]
[355545175,1741254643818,-500.0,0.00012069,2]
[355545176,1741254643827,-500.0,0.00012069,2]
[355545177,1741254643837,-167.52,0.00012069,2]
[355545178,1741254643846,-245.33,0.00012069,2]
[355545179,1741254643855,-507.7,0.00012069,2]
[355545180,1741254643865,-500.0,0.00012069,2]
[355545181,1741254643875,-500.0,0.00012069,2]
[355545182,1741254643884,-500.0,0.00012069,2]
[355545183,1741254643894,-500.0,0.00012069,2]
[355545184,1741254643903,-500.0,0.00012069,2]
[355545185,1741254643912,-500.0,0.00012069,2]
[355545186,1741254643921,-500.0,0.00012069,2]
[355545187,1741254643931,-614.76,0.00012069,2]
[355545188,1741254643940,-500.0,0.00012069,2]
[355545189,1741254643950,-500.0,0.00012069,2]
[355545190,1741254643959,-500.0,0.00012069,2]
[355545191,1741254643968,-500.0,0.00012069,2]
[355545192,1741254643978,-500.0,0.00012069,2]
[355545193,1741254643987,-500.0,0.00012069,2]
[355545194,1741254643997,-500.0,0.00012069,2]
[355545195,1741254644010,-500.0,0.00012069,2]
[355545196,1741254644019,-522.31,0.00012069,2]
[355545197,1741254644028,-500.0,0.00012069,2]
[355545198,1741254644038,-500.0,0.00012069,2]
[355545199,1741254644049,-500.0,0.00012069,2]
[355545200,1741254644060,-500.0,0.00012069,2]
[355545201,1741254644071,-359.17590854,0.00012069,2]
[355545202,1741254644082,-500.0,0.00012069,2]
[355545203,1741254644092,-500.0,0.00012069,2]
[355545204,1741254644101,-500.0,0.00012069,2]
[355545205,1741254644112,-500.0,0.00012069,2]
[355545206,1741254644121,-500.0,0.00012069,2]
[355545207,1741254644131,-500.0,0.00012069,2]
[355545208,1741254644140,-500.0,0.00012069,2]
[355545209,1741254644150,-500.0,0.00012069,2]
[355545210,1741254644160,-500.0,0.00012069,2]
[355545211,1741254644170,-1165.73,0.00012069,2]
[355545212,1741254644179,-500.0,0.00012069,2]
[355545213,1741254644188,-1756.52,0.00012069,2]
[355545214,1741254644198,-996.6,0.00012069,2]
[355545215,1741254644208,-500.0,0.00012069,2]
[355545216,1741254644218,-500.0,0.00012069,2]
[355545217,1741254644227,-1813.47,0.00012069,2]
[355545218,1741254644237,-500.0,0.00012069,2]
[355545219,1741254644246,-1953.72099634,0.00012069,2]
[355545220,1741254644267,-2115.8477109,0.00012069,2]
[355545221,1741254645999,-500.0,0.00011793,2]
[355545222,1741254646012,-816.5,0.00011794,2]
[355545223,1741254646022,-187.3111549,0.00011794,2]
[355545224,1741254646033,-532.13566886,0.00011794,2]
[355545225,1741254646043,-500.0,0.00011794,2]
[355545226,1741254646054,-816.5,0.00011961,2]
[355545227,1741254646065,-816.5,0.00012068,2]
[355545228,1741254646078,-500.0,0.00012068,2]
[355545229,1741254646088,-7590.33129276,0.00012069,2]
[355545230,1741254646097,-500.0,0.00012069,2]
[355545231,1741254646107,-826.01,0.00012069,2]
[355545232,1741254646117,-6422.37,0.00012069,2]
[355545233,1741254646127,-994.01,0.00012069,2]
[355545234,1741254646136,-500.0,0.00012069,2]
[355545235,1741254646147,-500.0,0.00012069,2]
[355545236,1741254646158,-500.0,0.00012069,2]
[355545237,1741254646168,-1623.72,0.00012069,2]
[355545238,1741254646177,-9280.97939992,0.00012069,2]
[355545239,1741254646189,-371.10157213,0.00012069,2]
[355545240,1741254646201,-227.80902795,0.00012069,2]
[355545241,1741254646211,-500.0,0.00012069,2]
[355545242,1741254646220,-665.8,0.00012069,2]
[355545243,1741254646229,-500.0,0.00012069,2]
[355545244,1741254646238,-97.36377205,0.00012069,2]
[355545252,1741255127929,567.5,8.793e-05,2]
[355545257,1741255762403,4356.70021146,9.781e-05,7]
[355545258,1741255827288,11057.0882284,9.781e-05,7]
[355545267,1741255832064,-443.06,0.00010637,2]
[355545268,1741255832074,-550.0,0.00011,2]
[355545269,1741255832084,-567.5,0.00011057,2]
[355545270,1741255832093,-182.78678649,0.00011137,2]
[355545271,1741255832102,-156.5,0.00011144,2]
[355545272,1741255832112,-217.47,0.00011189,2]
[355545273,1741255832121,-156.5,0.00011199,2]
[355545274,1741255832131,-1000.0,0.00011218,2]
[355545275,1741255832140,-1000.0,0.00011237,2]
[355545276,1741255832149,-198.73,0.00011247,2]
[355545277,1741255832158,-156.5,0.00011255,2]
[355545278,1741255832168,-156.5,0.00011311,2]
[355545279,1741255832180,-156.5,0.00011367,2]
[355545280,1741255832189,-156.5,0.00011422,2]
[355545281,1741255832198,-150.0,0.0001147,2]
[355545282,1741255832208,-156.5,0.00011478,2]
[355545283,1741255832217,-156.5,0.00011534,2]
[355545284,1741255832227,-1000.0,0.00011537,2]
[355545285,1741255832236,-156.5,0.00011589,2]
[355545286,1741255832246,-156.5,0.00011645,2]
[355545287,1741255832255,-204.27406811,0.00011671,2]
[355545288,1741255832264,-2480.5603,0.00011693,2]
[355545289,1741255832274,-965.94294611,0.00011693,2]
[355545290,1741255832284,-150.0,0.00011693,2]
[355545291,1741255832294,-1772.84131656,0.00011694,2]
[355545292,1741255832320,-845.01998344,0.00011694,2]
[355545293,1741255832329,-1113.82227154,0.00011694,2]
[355545294,1741255832358,-1151.55012815,0.00011694,2]
[355545295,1741255832370,-640.09000008,0.00011694,2]
[355545296,1741255832384,-256.7011023,0.00011694,2]
[355545297,1741255832399,-254.46,0.00011694,2]
[355545298,1741255832410,-2029.88435016,0.00011694,2]
[355545327,1741255837795,-900.0,0.00011693,2]
[355545328,1741255837807,-1365.25,0.00011694,2]
[355545329,1741255838011,-7581.03994777,0.00011694,2]
[355545330,1741255838021,-575.21123838,0.00011694,2]
[355545336,1741255840082,-3181.58276162,0.00011694,2]
[355545337,1741255840091,-150.73577029,0.00011694,2]
[355545338,1741255840101,-158.12184812,0.00011694,2]
[355545339,1741255840110,-156.5,0.00011701,2]
[355545340,1741255840119,-156.5,0.00011757,2]
[355545341,1741255840129,-1444.07951227,0.00011769,2]
[355545342,1741255840148,-522.758196,0.00011769,2]
[355545343,1741255840209,-817.58160012,0.00011769,2]
[355545344,1741255840263,-176.53608542,0.00011769,2]
[355545345,1741255840272,-661.88435196,0.00011792,2]
[355545346,1741255840323,-101.99068204,0.00011792,2]
[355545347,1741255840333,-1175.965917,0.00011792,2]
[355545348,1741255840343,-1887.23,0.00011792,2]
[355545349,1741255840353,-1212.19951285,0.00011792,2]
[355545371,1741255845903,-1866.59048715,0.00011792,2]
[355545372,1741255845912,-1362.6,0.00011792,2]
[355545373,1741255845922,-1432.12,0.00011792,2]
[355545374,1741255845931,-588.89,0.00011792,2]
[355545375,1741255845941,-747.92,0.00011792,2]
[355545376,1741255845950,-1534.58,0.00011792,2]
[355545377,1741255845959,-1138.7,0.00011792,2]
[355545378,1741255845968,-794.85,0.00011792,2]
[355545379,1741255845977,-915.73,0.00011792,2]
[355545380,1741255845987,-608.27,0.00011792,2]
[355545381,1741255845996,-1068.67,0.00011792,2]
[355545382,1741255846005,-772.34,0.00011792,2]
[355545383,1741255846015,-500.0,0.00011792,2]
[355545384,1741255846024,-294.43951285,0.00011792,2]
[355545385,1741255888555,98079.1164757,9.781e-05,7]
[355545386,1741255888744,11605.9071939,9.781e-05,7]
[355545388,1741256106991,151.0,9.781e-05,3]
[355545389,1741256300854,537.3,8.837e-05,2]
[355545390,1741256412274,151.0,9.781e-05,3]
[355545391,1741256706922,151.0,9.781e-05,3]
[355545394,1741256818766,229.14444299,0.000201,120]
[355545418,1741257007872,151.0,9.781e-05,3]
[355545423,1741257032098,-765.41038016,0.00010617,2]
[355545424,1741257032159,-234.58961984,0.00010617,2]
[355545425,1741257032168,-157.21,0.00010677,2]
[355545426,1741257032178,-166.13,0.00010677,2]
[355545427,1741257032188,-158.98,0.00010711,2]
[355545428,1741257032198,-157.21,0.00010784,2]
[355545429,1741257032208,-1276.85,0.00010784,2]
[355545430,1741257032217,-197.71367597,0.00010889,2]
[355545431,1741257032227,-157.21,0.00010891,2]
[355545432,1741257032237,-157.21,0.00010998,2]
[355545433,1741257032247,-537.3,0.00011101,2]
[355545434,1741257032257,-314.59,0.00011101,2]
[355545435,1741257032267,-150.99,0.00011104,2]
[355545436,1741257032277,-157.21,0.00011104,2]
[355545437,1741257032286,-151.0,0.00011139,3]
[355545438,1741257032296,-831.293214,0.00011155,2]
[355545439,1741257032305,-151.15541967,0.00011211,2]
[355545440,1741257032321,-6.05458033,0.00011211,2]
[355545441,1741257032330,-598.58703512,0.00011233,2]
[355545442,1741257032342,-714.18296488,0.00011233,2]
[355545443,1741257032352,-419.03,0.00011278,2]
[355545444,1741257032363,-157.21,0.00011318,2]
[355545445,1741257032372,-384.33,0.0001137,2]
[355545446,1741257032382,-157.21,0.00011425,2]
[355545447,1741257032391,-0.17873102,0.00011531,2]
[355545448,1741257032403,-157.03126898,0.00011531,2]
[355545449,1741257032413,-549.25960798,0.0001167,2]
[355545450,1741257032433,-302.26773202,0.0001167,2]
[355545451,1741257032443,-799.88100974,0.00011692,2]
[355545452,1741257032455,-307.26979026,0.00011692,2]
[355545453,1741257032464,-1111.4355,0.00011692,2]
[355545454,1741257032475,-3187.29470976,0.00011692,2]
[355545455,1741257032486,-1275.62211806,0.00011692,2]
[355545456,1741257032523,-1085.76207218,0.00011692,2]
[355545457,1741257032532,-622.28883849,0.00011692,2]
[355545458,1741257032541,-336.11957286,0.00011692,2]
[355545459,1741257032558,-934.33581522,0.00011692,2]
[355545460,1741257032568,-150.0,0.00011692,2]
[355545461,1741257032577,-1108.8356,0.00011693,2]
[355545462,1741257032587,-500.0,0.00011693,2]
[355545464,1741257032596,-644.4126,0.00011693,2]
[355545466,1741257032605,-513.2268,0.00011693,2]
[355545467,1741257032618,-2983.83003907,0.00011693,2]
[355545468,1741257032629,-2491.90196093,0.00011693,2]
[355545469,1741257032638,-123.0726169,0.00011745,2]
[355545470,1741257032650,-26.9273831,0.00011745,2]
[355545471,1741257032659,-560.53698294,0.00011781,2]
[355545472,1741257032668,-151.4190185,0.00011791,2]
[355545473,1741257032678,-500.0,0.00011791,2]
[355545474,1741257032687,-500.0,0.00011791,2]
[355545475,1741257032696,-500.0,0.00011791,2]
[355545476,1741257032706,-597.29,0.00011791,2]
[355545477,1741257032716,-500.0,0.00011791,2]
[355545478,1741257032726,-523.10245594,0.00011791,2]
[355545479,1741257032737,-152.79754406,0.00011791,2]
[355545480,1741257032747,-500.0,0.00011791,2]
[355545481,1741257032757,-500.0,0.00011791,2]
[355545482,1741257032766,-500.0,0.00011791,2]
[355545483,1741257032775,-500.0,0.00011791,2]
[355545484,1741257032786,-500.0,0.00011791,2]
[355545485,1741257032798,-500.0,0.00011791,2]
[355545487,1741257032808,-500.0,0.00011791,2]
[355545489,1741257032818,-97.03108594,0.00011791,2]
[355545491,1741257032831,-402.96891406,0.00011791,2]
[355545494,1741257032841,-500.0,0.00011791,2]
[355545497,1741257032850,-500.0,0.00011791,2]
[355545500,1741257032860,-525.03,0.00011791,2]
[355545503,1741257032870,-499.4964343,0.00011791,2]
[355545506,1741257032882,-276.9335657,0.00011791,2]
[355545509,1741257032892,-500.0,0.00011791,2]
[355545512,1741257032901,-500.0,0.00011791,2]
[355545515,1741257032910,-732.046908,0.00011791,2]
[355545516,1741257032920,-500.0,0.00011791,2]
[355545518,1741257032930,-1126.967337,0.00011791,2]
[355545520,1741257032940,-394.6992869,0.00011791,2]
[355545522,1741257032949,-500.0,0.00011791,2]
[355545524,1741257032959,-727.07,0.00011791,2]
[355545526,1741257032969,-500.0,0.00011791,2]
[355545528,1741257032979,-500.0,0.00011791,2]
[355545531,1741257032990,-760.75,0.00011791,2]
[355545533,1741257033001,-500.0,0.00011791,2]
[355545535,1741257033011,-500.0,0.00011791,2]
[355545536,1741257033022,-829.11,0.00011791,2]
[355545538,1741257033033,-500.0,0.00011791,2]
[355545541,1741257033044,-500.0,0.00011791,2]
[355545543,1741257033055,-500.0,0.00011791,2]
[355545545,1741257033064,-631.05646973,0.00011791,2]
[355545547,1741257033077,-113.08353027,0.00011791,2]
[355545549,1741257033088,-500.0,0.00011791,2]
[355545551,1741257033099,-159.05844263,0.00011791,2]
[355545552,1741257033114,-300.0,0.00011791,2]
[355545556,1741257037968,-40.94155737,0.00011791,2]
[355545557,1741257037978,-500.0,0.00011791,2]
[355545558,1741257037988,-786.5,0.00011791,2]
[355545559,1741257037997,-889.24,0.00011791,2]
[355545560,1741257038006,-500.0,0.00011791,2]
[355545561,1741257038015,-500.0,0.00011791,2]
[355545562,1741257038024,-500.0,0.00011791,2]
[355545563,1741257038034,-401.63347419,0.00011791,2]
[355545564,1741257038043,-684.86,0.00011791,2]
[355545565,1741257038052,-628.78,0.00011791,2]
[355545566,1741257038062,-869.94,0.00011791,2]
[355545567,1741257038071,-500.0,0.00011791,2]
[355545568,1741257038081,-500.0,0.00011791,2]
[355545569,1741257038090,-707.4,0.00011791,2]
[355545570,1741257038099,-734.33,0.00011791,2]
[355545571,1741257038108,-624.73,0.00011791,2]
[355545572,1741257038120,-1337.57,0.00011791,2]
[355545573,1741257038129,-794.95,0.00011791,2]
[355545574,1741257038139,-1280.93,0.00011791,2]
[355545575,1741257038148,-797.87,0.00011791,2]
[355545576,1741257038158,-1511.16,0.00011791,2]
[355545577,1741257038168,-562.91,0.00011791,2]
[355545578,1741257038178,-2985.34,0.00011791,2]
[355545579,1741257038187,-2627.58,0.00011791,2]
[355545580,1741257038197,-818.45,0.00011791,2]
[355545581,1741257038207,-500.0,0.00011791,2]
[355545582,1741257038217,-500.0,0.00011791,2]
[355545583,1741257038227,-539.18634704,0.00011791,2]
[355545584,1741257038239,-2411.32365296,0.00011791,2]
[355545585,1741257038249,-1983.58,0.00011791,2]
[355545586,1741257038260,-500.0,0.00011791,2]
[355545587,1741257038271,-500.0,0.00011791,2]
[355545588,1741257038281,-1305.83,0.00011791,2]
[355545589,1741257038292,-1902.07,0.00011791,2]
[355545590,1741257038301,-3233.98,0.00011791,2]
[355545591,1741257038311,-1372.44,0.00011791,2]
[355545592,1741257038321,-619.52,0.00011791,2]
[355545593,1741257038331,-1353.03,0.00011791,2]
[355545594,1741257038341,-691.18,0.00011791,2]
[355545595,1741257038351,-2566.77,0.00011791,2]
[355545596,1741257038361,-3636.12,0.00011791,2]
[355545597,1741257038377,-2127.3,0.00011791,2]
[355545598,1741257038387,-564.35,0.00011791,2]
[355545599,1741257038396,-1551.3,0.00011791,2]
[355545601,1741257038406,-1024.14,0.00011791,2]
[355545602,1741257038416,-500.0,0.00011791,2]
[355545604,1741257038426,-1270.69,0.00011791,2]
[355545605,1741257038436,-785.98,0.00011791,2]
[355545606,1741257038446,-761.73,0.00011791,2]
[355545607,1741257038456,-500.0,0.00011791,2]
[355545608,1741257038466,-1657.27,0.00011791,2]
[355545609,1741257038476,-500.0,0.00011791,2]
[355545610,1741257038486,-740.16,0.00011791,2]
[355545611,1741257038495,-216.22723205,0.00011791,2]
[355545612,1741257038507,-366.70276795,0.00011791,2]
[355545613,1741257038516,-807.55,0.00011791,2]
[355545614,1741257038525,-463.84265175,0.00011791,2]
[355545615,1741257038548,-36.15734825,0.00011791,2]
[355545616,1741257038561,-500.0,0.00011791,2]
[355545617,1741257038571,-500.0,0.00011791,2]
[355545618,1741257038580,-397.75343694,0.00011791,2]
[355545619,1741257038593,-453.30570109,0.00011791,2]
[355545620,1741257038606,-789.81086197,0.00011791,2]
[355545621,1741257038619,-886.99,0.00011791,2]
[355545622,1741257038629,-500.0,0.00011791,2]
[355545623,1741257038639,-1402.27,0.00011791,2]
[355545624,1741257038648,-1252.57,0.00011791,2]
[355545625,1741257038658,-1670.03,0.00011791,2]
[355545626,1741257038667,-500.0,0.00011791,2]
[355545627,1741257038677,-697.12,0.00011791,2]
[355545628,1741257038687,-1515.52,0.00011791,2]
[355545629,1741257038697,-1284.75,0.00011791,2]
[355545630,1741257038706,-2945.56,0.00011791,2]
[355545631,1741257038716,-2353.51,0.00011791,2]
[355545632,1741257038725,-910.76,0.00011791,2]
[355545633,1741257038735,-1692.21,0.00011791,2]
[355545634,1741257038744,-500.0,0.00011791,2]
[355545635,1741257038754,-500.0,0.00011791,2]
[355545636,1741257038764,-1204.15,0.00011791,2]
[355545637,1741257038774,-2989.76,0.00011791,2]
[355545638,1741257038786,-1059.29,0.00011791,2]
[355545639,1741257038797,-747.94,0.00011791,2]
[355545640,1741257038807,-500.0,0.00011791,2]
[355545641,1741257038817,-712.64,0.00011791,2]
[355545642,1741257038827,-1350.12,0.00011791,2]
[355545643,1741257038837,-505.56,0.00011791,2]
[355545644,1741257038846,-1506.55,0.00011791,2]
[355545645,1741257038856,-995.21,0.00011791,2]
[355545646,1741257038871,-500.0,0.00011791,2]
[355545647,1741257038880,-500.0,0.00011791,2]
[355545648,1741257038890,-1386.35,0.00011791,2]
[355545649,1741257038899,-1200.99,0.00011791,2]
[355545650,1741257038909,-1243.71,0.00011791,2]
[355545651,1741257038919,-655.74,0.00011791,2]
[355545652,1741257038928,-1022.25,0.00011791,2]
[355545653,1741257038937,-500.0,0.00011791,2]
[355545654,1741257038947,-770.78,0.00011791,2]
[355545655,1741257038957,-576.51,0.00011791,2]
[355545656,1741257038967,-1763.46,0.00011791,2]
[355545657,1741257038977,-500.0,0.00011791,2]
[355545658,1741257038987,-1151.36,0.00011791,2]
[355545659,1741257038997,-2550.59,0.00011791,2]
[355545660,1741257039007,-559.33650054,0.00011791,2]
[355545661,1741257039020,-144.05349946,0.00011791,2]
[355545662,1741257039030,-1072.9,0.00011791,2]
[355545663,1741257039039,-500.0,0.00011791,2]
[355545664,1741257039049,-624.33,0.00011791,2]
[355545665,1741257039058,-1225.26,0.00011791,2]
[355545666,1741257039069,-1093.25,0.00011791,2]
[355545667,1741257039079,-500.0,0.00011791,2]
[355545668,1741257039089,-570.97,0.00011791,2]
[355545669,1741257039098,-1245.44,0.00011791,2]
[355545670,1741257039110,-627.56,0.00011791,2]
[355545671,1741257039123,-1280.24,0.00011791,2]
[355545672,1741257039133,-776.64,0.00011791,2]
[355545673,1741257039143,-162.24,0.00011791,2]
[355545674,1741257039152,-890.5,0.00011791,2]
[355545675,1741257039162,-108.7856816,0.00011791,2]
[355545676,1741257039174,-391.2143184,0.00011791,2]
[355545677,1741257039183,-209.24330111,0.00011791,2]
[355545678,1741257039217,-322.03669889,0.00011791,2]
[355545679,1741257039226,-1068.59,0.00011791,2]
[355545680,1741257039235,-500.0,0.00011791,2]
[355545681,1741257039245,-501.28,0.00011791,2]
[355545682,1741257039254,-500.0,0.00011791,2]
[355545683,1741257039263,-500.0,0.00011791,2]
[355545684,1741257039271,-796.66,0.00011791,2]
[355545685,1741257039280,-1610.15,0.00011791,2]
[355545686,1741257039290,-4425.81,0.00011791,2]
[355545687,1741257039300,-953.75,0.00011791,2]
[355545688,1741257039309,-679.6,0.00011791,2]
[355545689,1741257039319,-500.0,0.00011791,2]
[355545690,1741257039328,-43613.64811752,0.00011792,2]
[355545702,1741257040271,-502.90222636,0.00011791,2]
[355545703,1741257040281,-7489.54777365,0.00011792,2]
[355545704,1741257040567,-500.0,0.00011791,2]
[355545705,1741257040577,-5933.87206,0.00011792,2]
[355545806,1741257043534,-550.467936,0.00011792,2]
[355545827,1741257046143,-1365.25,0.00011692,2]
[355545828,1741257046152,-152.33906207,0.00011692,2]
[355545829,1741257046161,-685.16,0.00011791,2]
[355545830,1741257046170,-5809.70093793,0.00011792,2]
[355545831,1741257046181,-974.30958254,0.00011792,2]
[355545832,1741257046192,-395.66579341,0.00011792,2]
[355545833,1741257046227,-500.0,0.00011791,2]
[355545834,1741257046237,-27015.00013921,0.00011792,2]
[355545838,1741257350762,483.57,8.97e-05,2]
[355545934,1741258232247,-354.44,0.00010557,2]
[355545935,1741258232257,-166.13,0.00010597,2]
[355545936,1741258232267,-129.43,0.00010677,7]
[355545937,1741258232308,-20.57,0.00010677,7]
[355545938,1741258232317,-152.24,0.00010677,2]
[355545939,1741258232327,-152.24,0.00010748,2]
[355545940,1741258232337,-152.24,0.0001082,2]
[355545941,1741258232346,-152.24,0.00010891,2]
[355545942,1741258232356,-163.26,0.00010961,2]
[355545943,1741258232366,-152.24,0.00010962,2]
[355545944,1741258232377,-300.0,0.00010999,2]
[355545945,1741258232387,-16024.56904405,0.00011,3]
[355545946,1741258232396,-550.0,0.00011,2]
[355545947,1741258232408,-1622.22,0.00011,2]
[355545948,1741258232417,-152.24,0.00011033,2]
[355545949,1741258232426,-2906.65753181,0.000111,2]
[355545950,1741258232443,-1577.36276331,0.000111,2]
[355545951,1741258232454,-526.39060759,0.000111,2]
[355545952,1741258232464,-152.24,0.00011104,2]
[355545953,1741258232474,-152.24,0.00011176,2]
[355545954,1741258232483,-483.57,0.00011234,2]
[355545955,1741258232493,-152.24,0.00011247,2]
[355545956,1741258232502,-148.51482487,0.0001128,2]
[355545957,1741258232514,-1.48517513,0.0001128,2]
[355545958,1741258232523,-817.61207527,0.00011281,2]
[355545959,1741258232535,-864.56962745,0.00011281,2]
[355545960,1741258232545,-1681.21549141,0.00011281,2]
[355545972,1741258238153,-414.04008287,0.00011281,2]
[355545977,1741258238213,-999.362723,0.00011281,2]
[355545979,1741258238223,-766.137277,0.00011281,2]
[355545981,1741258238235,-2637.7,0.00011281,2]
[355545984,1741258238246,-731.479535,0.00011281,2]
[355545988,1741258238272,-15864.673188,0.00011281,2]
[355545990,1741258238281,-152.24,0.00011318,2]
[355545991,1741258238291,-152.24,0.00011389,2]
[355545993,1741258238304,-500.0,0.00011452,2]